Workbook

Sheet Forma
J2: Datums: | K2: =IF(K4>0,K4,TODAY()) -> 2013-08-01
C4: SVM | E4: 102501 | J4: Datuma korekcija: | K4: 2013-08-01
J6: Datums vārdiem: | K6: =YEAR(K2)&". gada " & DAY(K2) &". " & VLOOKUP(Nieki!C2,Nieki!C3:D14,2,FALSE) -> 2013. gada 1. augustā
E10: Firmas nosaukums: | F10: "AT FOREST"SIA | P10: Atbildīgā persona | Q10: Mihails Ņikitins
E12: Izkraušanas adrese:
E14: Pārvadātājs:
E16: Auto vadītāja vārds, uzvārds: | L16: Automobila valsts numurs: | R16: Faktūr-Rēķins Nr.
D19: Krotalijas numurs:
Q22: EKA čeks
R23: Numurs
D25: Kaušanas kārtas numurs: | R25: Datums
D32: Pozicija nr. 1:
E34: nosaukums:
G36: cena, Ls (bez PVN): | J36: svars, kg:
G38: kaušanas datums:
D41: Pozicija nr. 2:
E43: nosaukums:
G45: cena, Ls (bez PVN): | J45: svars, kg:
G47: kaušanas datums:
D50: Pozicija nr. 3:
E52: nosaukums:
G54: cena, Ls (bez PVN): | J54: svars, kg:
G56: kaušanas datums:
D59: Pozicija nr. 4:
E61: nosaukums:
G63: cena, Ls (bez PVN): | J63: svars, kg:
G65: kaušanas datums:
D68: Pozicija nr. 5:
E70: nosaukums:
G72: cena, Ls (bez PVN): | J72: svars, kg:
G74: kaušanas datums:

Sheet PPR
B4: =Forma!K6 -> 2013. gada 1. augustā | J4: Rēķins nr. | K4: =IF(Forma!E4>0,Forma!C4&" "&Forma!E4,"") -> SVM 102501
A6: Preču piegādājs:
J7: LV 40103316163
C8: "S.V.M. Baltika" SIA
D9: Firmas nosaukums | J9: A/S "Swedbank", HABALV22, LV49HABA0551029087689
B10: Egļu iela 11, Jaunmārupe, Mārupes novads, Rīgas rajons, LV-2166
D11: Juridiskā adrese
B12: „Mālkalni”, Drabešu pagasts, Amatas novads, Cēsu rajons (PVD -A 045687)
D13: Preču izsniegšanas vietas adrese
B14: e-pasts: s.v.m.baltika@inbox.lv; tālr.: (+371) 26763619
D15: Kontaktinformācija
A16: Preču saņēmējs:
J17: =IF(C18>"",IF(VLOOKUP("PVN Nr.",'Firmas sarakst'!$A$1:$AZ$36,MATCH(Forma!$F$10,Firmas,0)+1,FALSE)<=0,"",VLOOKUP("PVN Nr.",'Firmas sarakst'!$A$1:$AZ$36,MATCH(Forma!$F$10,Firmas,0)+1,FALSE)),"") -> LV44103086906
C18: =IF(Forma!F10>"",Forma!F10,"") -> "AT FOREST"SIA
D19: Firmas nosaukums | J19: =IF(C18>"",IF(VLOOKUP("Bankas nosaukums, SWIFT, IBAN",'Firmas sarakst'!$A$1:$AZ$36,MATCH(Forma!$F$10,Firmas,0)+1,FALSE)<=0,"",VLOOKUP("Bankas nosaukums, SWIFT, IBAN",'Firmas sarakst'!$A$1:$AZ$36,MATCH(Forma!$F$10,Firmas,0)+1,FALSE)),"") -> 11
B20: =IF(C18>"",IF(VLOOKUP("Juridiskā adrese",'Firmas sarakst'!$A$1:$AZ$36,MATCH(Forma!$F$10,Firmas,0)+1,FALSE)<=0,"",VLOOKUP("Juridiskā adrese",'Firmas sarakst'!$A$1:$AZ$36,MATCH(Forma!$F$10,Firmas,0)+1,FALSE)),"") -> Gaujas iela 7-28,Valmieras,LV-4201;
D21: Juridiskā adrese
B22: =IF(Forma!F12>"",Forma!F12,"") -> 
D23: Preču saņēmšanas vietas adrese
B24: =IF(C18>"",IF(VLOOKUP("Kontaktinformācija",'Firmas sarakst'!$A$1:$AZ$36,MATCH(Forma!$F$10,Firmas,0)+1,FALSE)<=0,"",VLOOKUP("Kontaktinformācija",'Firmas sarakst'!$A$1:$AZ$36,MATCH(Forma!$F$10,Firmas,0)+1,FALSE)),"") -> 
D25: Kontaktinformācija
A26: Pārvadātājs:
C28: =IF(Forma!F14>"",Forma!F14& ", "&IF(VLOOKUP("PVN Nr.",'Firmas sarakst'!$A$1:$AZ$36,MATCH(Forma!$F$14,Firmas,0)+1,FALSE)<=0,"",VLOOKUP("PVN Nr.",'Firmas sarakst'!$A$1:$AZ$36,MATCH(Forma!$F$14,Firmas,0)+1,FALSE))&", "&Forma!M16&", "&Forma!F16&".","") -> 
D29: Firmas nosaukums, PVN numurs, transportlīdzekļa valsts reģistrācijas numurs un transportlīdzekļa vadītāja vārds un uzvārds
A30: Speciālas atzīmes:
B32: Ar priekš apmaku:FR000106; | J32: preču pārdošana
D33: Samaksas veids un kārtība | J33: Saimnieciskā darījuma apraksts
A35: Nr. | C35: Nosaukums | G35: Kaušanas datums | H35: Izlietot līdz | I35: Mērvienība | J35: Daudzums kg. | K35: Vienības cenas, Ls (bez PVN) | L35: Kopējā vērtība, Ls (bez PVN) | M35: Kopējā vērtība,EUR (bez PVN)
A36: 1 | C36: Cūkgaļas muguras karbon.(atdzesēts) | H36: 06.10.2013 | I36: kg. | J36: 200 | K36: 2.6 | L36: =IF(C36>"",K36*J36,"") -> 520 | M36: =L36/'Eiro kurss'!B2 -> 739.8933415
A37: =IF(C37>"",2,"") -> 2 | C37: Cūkgaļas šķiņķis bez a/k(atdzesēts) | H37: 06.10.2013 | I37: kg. | J37: 400 | K37: 2.1 | L37: =IF(C37>"",K37*J37,"") -> 840 | M37: =L37/'Eiro kurss'!B2 -> 1195.212321
A38: =IF(C38>"",3,"") ->  | M38: =L38/'Eiro kurss'!B2 -> 0
A39: =IF(C39>"",4,"") -> 4 | C39: Cūkgaļas krūtiņa ar k.(atdzesēta) | H39: 06.10.2013 | I39: kg. | J39: 305.645 | K39: 1.9 | L39: =IF(C39>"",K39*J39,"") -> 580.7255 | M39: =L39/'Eiro kurss'!B2 -> 826.2979437
A40: =IF(C40>"",5,"") ->  | L40: =IF(C40>"",K40*J40,"") -> 
I42: kopā: | J42: =SUM(J36:J40) -> 905.645 | L42: =IF(SUM(L36:L40)>=0,ROUND(SUM(L36:L40),2),"") -> 1940.73 | M42: =IF(SUM(M36:M40)>=0,ROUND(SUM(M36:M40),2),"") -> 2761.4
A43: =IF(Forma!C20>"","Informācija pār preci:",IF(Forma!C26>"","Informācija pār preci:","")) -> 
A44: Partijas Nr:Sk.marķ.;
K46: PVN 21% | L46: =IF(L42>=0,L42*0.21,"") -> 407.5533 | M46: =IF(M42>=0,M42*0.21,"") -> 579.894
K48: pavisam apmaksai | L48: =IF(L42>=0,ROUND(L42+L46,2),"") -> 2348.28 | M48: =IF(M42>=0,ROUND(M42+M46,2),"") -> 3341.29
B50: ='Cipari-vārdi'!A2 -> Divi tūkstoši trīs simti četrdesmit astoņi lati 28 sant.
B51: ='Cipari-vārdi_eiro'!A2 -> Trīs tūkstoši trīs simti četrdesmit vienseiro 29 cent.
A52: Summa vardiem
A54: Par noformēšanu un preču izniegšanu atbildīgā persona | F54: Par preču pārvadāšanu atbildīgā persona | I54: Par preču saņemšanu atbildīgā persona
A57: =IF(Forma!Q10>0,Forma!Q10,"") -> Mihails Ņikitins | F57: =IF(Forma!F16>0,Forma!F16,"") -> 
A58: vārds, uzvārds | F58: vārds, uzvārds | I58: vārds, uzvārds
A63: paraksts | F63: paraksts | I63: paraksts
E64: Z. V. | H64: Z. V. | L64: Z. V.
B68: =Forma!K6 -> 2013. gada 1. augustā | F68: =Forma!K6 -> 2013. gada 1. augustā | I68: 20____.gada ______. _________________
B72: Atdzesētai gaļai uzglabāšanas temperatūra 0...+7 C. Atdzesētiem blakusproduktiem uzglabāšanas temperatūra 0...+3 C.
B73: Saldetiem blakusproduktiem uzglabāšanas temperatūra -18 C.
B74: Uznēmūma istrādāta un darbojas paškontroles sistēma, kuras pamatā iekļauti HACCP principi.

Sheet Faktura
B4: =Forma!K6 -> 2013. gada 1. augustā | H4: Faktūr - Rēķins nr. | I4: =IF(Forma!R18>0,"FR "&Forma!R18,"") -> 
A6: Preču piegādājs:
H7: LV 40103316163
C8: "S.V.M. Baltika" SIA
D9: Firmas nosaukums | H9: A/S "Swedbank", HABALV22, LV49HABA0551029087689
B10: Egļu iela 11, Jaunmārupe, Mārupes novads, Rīgas rajons, LV-2166
D11: Juridiskā adrese
B12: e-pasts: s.v.m.baltika@inbox.lv; tālr.: (+371) 26763619
D13: Kontaktinformācija
A14: Preču saņēmējs:
H15: =IF(C16>"",IF(VLOOKUP("PVN Nr.",'Firmas sarakst'!$A$1:$AZ$36,MATCH(Forma!$F$10,Firmas,0)+1,FALSE)<=0,"",VLOOKUP("PVN Nr.",'Firmas sarakst'!$A$1:$AZ$36,MATCH(Forma!$F$10,Firmas,0)+1,FALSE)),"") -> LV44103086906
C16: =IF(Forma!F10>"",Forma!F10,"") -> "AT FOREST"SIA
D17: Firmas nosaukums | H17: =IF(C16>"",IF(VLOOKUP("Bankas nosaukums, SWIFT, IBAN",'Firmas sarakst'!$A$1:$AZ$36,MATCH(Forma!$F$10,Firmas,0)+1,FALSE)<=0,"",VLOOKUP("Bankas nosaukums, SWIFT, IBAN",'Firmas sarakst'!$A$1:$AZ$36,MATCH(Forma!$F$10,Firmas,0)+1,FALSE)),"") -> 11
B18: =IF(C16>"",IF(VLOOKUP("Juridiskā adrese",'Firmas sarakst'!$A$1:$AZ$36,MATCH(Forma!$F$10,Firmas,0)+1,FALSE)<=0,"",VLOOKUP("Juridiskā adrese",'Firmas sarakst'!$A$1:$AZ$36,MATCH(Forma!$F$10,Firmas,0)+1,FALSE)),"") -> Gaujas iela 7-28,Valmieras,LV-4201;
D19: Juridiskā adrese
B20: =IF(C16>"",IF(VLOOKUP("Kontaktinformācija",'Firmas sarakst'!$A$1:$AZ$36,MATCH(Forma!$F$10,Firmas,0)+1,FALSE)<=0,"",VLOOKUP("Kontaktinformācija",'Firmas sarakst'!$A$1:$AZ$36,MATCH(Forma!$F$10,Firmas,0)+1,FALSE)),"") -> 
D21: Kontaktinformācija
A23: Speciālas atzīmes:
B25: =IF(C16>"","apmaksāt līdz: "&TEXT(Forma!K2+1,"ДД.ММ.ГГГГ"),"") -> apmaksāt līdz: 02.08.2013 | H25: preču pārdošana
D26: Samaksas veids un kartiba | H26: Saimnieciskā darījuma apraksts
A28: Nr. | C28: Nosaukums | G28: Mērvienība | H28: Daudzums, kg. | I28: Vienības cenas, Ls (bez PVN) | J28: Kopējā vērtība, Ls (bez PVN)
A29: =IF(C29>"",1,"") -> 1 | C29: Liellopu kotlešu gaļa II šķ.(atdzesēta) | G29: kg. | H29: 1400 | I29: 1.7 | J29: =IF(C29>"",I29*H29,"") -> 2380
A30: =IF(C30>"",2,"") ->  | C30: =IF(Forma!F43>0,Forma!F43,"") ->  | G30: =IF(C30>"",VLOOKUP(C30,Preces!$A$1:$C$50,3,FALSE),"") ->  | H30: =IF(C30>"",Forma!K45,"") ->  | I30: =IF(C30>"",Forma!H45,"") ->  | J30: =IF(C30>"",H30*I30,"") -> 
A31: =IF(C31>"",3,"") ->  | C31: =IF(Forma!F52>0,Forma!F52,"") ->  | G31: =IF(C31>"",VLOOKUP(C31,Preces!$A$1:$C$50,3,FALSE),"") ->  | H31: =IF(C31>"",Forma!K54,"") ->  | I31: =IF(C31>"",Forma!H54,"") ->  | J31: =IF(C31>"",H31*I31,"") -> 
A32: =IF(C32>"",4,"") ->  | C32: =IF(Forma!F61>0,Forma!F61,"") ->  | G32: =IF(C32>"",VLOOKUP(C32,Preces!$A$1:$C$50,3,FALSE),"") ->  | H32: =IF(C32>"",Forma!K63,"") ->  | I32: =IF(C32>"",Forma!H63,"") ->  | J32: =IF(C32>"",H32*I32,"") -> 
A33: =IF(C33>"",5,"") ->  | C33: =IF(Forma!F70>0,Forma!F70,"") ->  | G33: =IF(C33>"",VLOOKUP(C33,Preces!$A$1:$C$50,3,FALSE),"") ->  | H33: =IF(C33>"",Forma!K72,"") ->  | I33: =IF(C33>"",Forma!H72,"") ->  | J33: =IF(C33>"",H33*I33,"") -> 
G35: kopā: | H35: =SUM(H29:H33) -> 1400 | J35: =IF(SUM(J29:J33)>=0,ROUND(SUM(J29:J33),2),"") -> 2380
A36: =IF(Forma!C20>"","Informācija pār preci:",IF(Forma!C26>"","Informācija pār preci:","")) -> 
A37: =IF(Forma!C20>"","Krotalijas numurs: ","")&IF(Forma!C20>"",Forma!C20,"")&IF(Forma!E20>"",", "&Forma!E20,"")&IF(Forma!G20>"",", "&Forma!G20,"")&IF(Forma!I20>"",", "&Forma!I20,"")&IF(Forma!K20>"",", "&Forma!K20,"")&IF(Forma!M20>"",", "&Forma!M20,"")&IF(Forma!C21>"",", "&Forma!C21,"")&IF(Forma!E21>"",", "&Forma!E21,"")&IF(Forma!G21>"",", "&Forma!G21,"")&IF(Forma!I21>"",", "&Forma!I21,"")&IF(Forma!K21>"",", "&Forma!K21,"")&IF(Forma!M21>"",", "&Forma!M21,"")&IF(Forma!C22>"",", "&Forma!C22,"")&IF(Forma!E22>"",", "&Forma!E22,"")&IF(Forma!G22>"",", "&Forma!G22,"")&IF(Forma!I22>"",", "&Forma!I22,"")&IF(Forma!K22>"",", "&Forma!K22,"")&IF(Forma!M22>"",", "&Forma!M22,"")&IF(Forma!C23>"",", "&Forma!C23,"")&IF(Forma!E23>"",", "&Forma!E23,"")&IF(Forma!G23>"",", "&Forma!G23,"")&IF(Forma!I23>"",", "&Forma!I23,"")&IF(Forma!K23>"",", "&Forma!K23,"")&IF(Forma!C26>""," Kaušanas kārtas numurs: ","")&IF(Forma!C26>"",Forma!C26,"")&IF(Forma!D26>"",", "&Forma!D26,"")&IF(Forma!E26>"",", "&Forma!E26,"")&IF(Forma!F26>"",", "&Forma!F26,"")&IF(Forma!G26>"",", "&Forma!G26,"")&IF(Forma!H26>"",", "&Forma!H26,"")&IF(Forma!I26>"",", "&Forma!I26,"")&IF(Forma!J26>"",", "&Forma!J26,"")&IF(Forma!K26>"",", "&Forma!K26,"")&IF(Forma!L26>"",", "&Forma!L26,"")&IF(Forma!M26>"",", "&Forma!M26,"")&IF(Forma!N26>"",", "&Forma!N26,"")&IF(Forma!C27>"",", "&Forma!C27,"")&IF(Forma!D27>"",", "&Forma!D27,"")&IF(Forma!E27>"",", "&Forma!E27,"")&IF(Forma!F27>"",", "&Forma!F27,"")&IF(Forma!G27>"",", "&Forma!G27,"") -> 
I39: PVN 21% | J39: =IF(J35>=0,J35*0.21,"") -> 499.8
I41: pavisam apmaksai | J41: =IF(J35>=0,ROUND(J35+J39,2),"") -> 2879.8
A44: Summa vardiem
A47: Par noformēšanu atbildīgā persona
H50: =IF(Forma!Q10>0,Forma!Q10,"") -> Mihails Ņikitins
H51: vārds, uzvārds
H56: paraksts
J57: Z. V.
H61: =Forma!K6 -> 2013. gada 1. augustā

Sheet Preces
A1: Nosaukums | B1: Term. | C1: Merv.
A2: Liellopu gaļas liemenis (atdzesēts) | B2: 6 | C2: kg.
A3: Jaunlopu gaļas liemenis (atdzesēts) | B3: 6 | C3: kg.
A4: Teļa gaļas liemenis (atdzesēts) | B4: 6 | C4: kg.
A5: Jēra gaļa liemenis (atdzesēts) | B5: 6 | C5: kg.
A6: Aita gaļas liemenis (atdzesēts) | B6: 6 | C6: kg.
A7: Cūkgaļas liemenis (atdzesēts) | B7: 6 | C7: kg.
A8: Liellopu subprodukti (atdzesēti) | B8: 3 | C8: kg.
A9: Cūkgaļas subprodukti (atdzesēti) | B9: 3 | C9: kg.
A10: Jēra gaļa subprodukti (atdzesēti) | B10: 3 | C10: kg.
A11: Liellopu mēle (atdzesēti) | B11: 3 | C11: kg.
A12: Liellopu aste (atdzesēti) | B12: 3 | C12: kg.
A13: Liellopu aknas (atdzesēti) | B13: 3 | C13: kg.
A14: Liellopu sirds (atdzesēti) | B14: 3 | C14: kg.
A15: Liellopu nieres (atdzesēti) | B15: 3 | C15: kg.
A16: Liellopu plaušas (atdzesēti) | B16: 3 | C16: kg.
A17: Cūku galvas (atdzesēti) | B17: 3 | C17: kg.
A18: Cūku mēle (atdzesēti) | B18: 3 | C18: kg.
A19: Cūku aknas (atdzesēti) | B19: 3 | C19: kg.
A20: Cūku sirds (atdzesēti) | B20: 3 | C20: kg.
A21: Cūku ausis (atdzesēti) | B21: 3 | C21: kg.
A22: Cūku nieres (atdzesēti) | B22: 3 | C22: kg.
A23: Jēra mēle (atdzesēti) | B23: 3 | C23: kg.
A24: Jēra aknas (atdzesēti) | B24: 3 | C24: kg.
A25: Jēra sirds (atdzesēti) | B25: 3 | C25: kg.
A26: Jēra ausis (atdzesēti) | B26: 3 | C26: kg.
A27: Jēra nieres (atdzesēti) | B27: 3 | C27: kg.
A28: Blakusprodukti III kat. (atdzesēti) | B28: 3 | C28: kg.
A29: Liellopu ādas | B29: nav. | C29: kg.

Sheet Nieki
A1: Datums | C1: Mēnesis | F1: Atbildīgā persona | H1: Izkraušana | J1: Autovāditajs | L1: Valsts numurs (auto)
A2: =PPR!B4 -> 2013. gada 1. augustā | C2: =MONTH(Forma!K2) -> 8 | F2: Mihails Ņikitins | H2: =IF(VLOOKUP("Izkraušanas vieta 1",'Firmas sarakst'!$A$1:$AZ$36,MATCH(Forma!$F$10,Firmas,0)+1,FALSE)<=0,"",VLOOKUP("Izkraušanas vieta 1",'Firmas sarakst'!$A$1:$AZ$36,MATCH(Forma!$F$10,Firmas,0)+1,FALSE)) ->  | J2: =IF(VLOOKUP("Autoboliļa vadītaja vārds un uzvārds 1",'Firmas sarakst'!$A$1:$AZ$36,MATCH(Forma!$F$14,Firmas,0)+1,FALSE)<=0,"",VLOOKUP("Autoboliļa vadītaja vārds un uzvārds 1",'Firmas sarakst'!$A$1:$AZ$36,MATCH(Forma!$F$14,Firmas,0)+1,FALSE)) ->  | L2: =IF(VLOOKUP("Autoboliļa reģistrācijas valsts numurs 1",'Firmas sarakst'!$A$1:$AZ$36,MATCH(Forma!$F$14,Firmas,0)+1,FALSE)<=0,"",VLOOKUP("Autoboliļa reģistrācijas valsts numurs 1",'Firmas sarakst'!$A$1:$AZ$36,MATCH(Forma!$F$14,Firmas,0)+1,FALSE)) -> 
C3: 1 | D3: janvārī | F3: Jurijs Kidelis | H3: =IF(VLOOKUP("Izkraušanas vieta 2",'Firmas sarakst'!$A$1:$AZ$36,MATCH(Forma!$F$10,Firmas,0)+1,FALSE)<=0,"",VLOOKUP("Izkraušanas vieta 2",'Firmas sarakst'!$A$1:$AZ$36,MATCH(Forma!$F$10,Firmas,0)+1,FALSE)) ->  | J3: =IF(VLOOKUP("Autoboliļa vadītaja vārds un uzvārds 2",'Firmas sarakst'!$A$1:$AZ$36,MATCH(Forma!$F$14,Firmas,0)+1,FALSE)<=0,"",VLOOKUP("Autoboliļa vadītaja vārds un uzvārds 2",'Firmas sarakst'!$A$1:$AZ$36,MATCH(Forma!$F$14,Firmas,0)+1,FALSE)) ->  | L3: =IF(VLOOKUP("Autoboliļa reģistrācijas valsts numurs 2",'Firmas sarakst'!$A$1:$AZ$36,MATCH(Forma!$F$14,Firmas,0)+1,FALSE)<=0,"",VLOOKUP("Autoboliļa reģistrācijas valsts numurs 2",'Firmas sarakst'!$A$1:$AZ$36,MATCH(Forma!$F$14,Firmas,0)+1,FALSE)) -> 
C4: 2 | D4: februārī | H4: =IF(VLOOKUP("Izkraušanas vieta 3",'Firmas sarakst'!$A$1:$AZ$36,MATCH(Forma!$F$10,Firmas,0)+1,FALSE)<=0,"",VLOOKUP("Izkraušanas vieta 3",'Firmas sarakst'!$A$1:$AZ$36,MATCH(Forma!$F$10,Firmas,0)+1,FALSE)) ->  | J4: =IF(VLOOKUP("Autoboliļa vadītaja vārds un uzvārds 3",'Firmas sarakst'!$A$1:$AZ$36,MATCH(Forma!$F$14,Firmas,0)+1,FALSE)<=0,"",VLOOKUP("Autoboliļa vadītaja vārds un uzvārds 3",'Firmas sarakst'!$A$1:$AZ$36,MATCH(Forma!$F$14,Firmas,0)+1,FALSE)) ->  | L4: =IF(VLOOKUP("Autoboliļa reģistrācijas valsts numurs 3",'Firmas sarakst'!$A$1:$AZ$36,MATCH(Forma!$F$14,Firmas,0)+1,FALSE)<=0,"",VLOOKUP("Autoboliļa reģistrācijas valsts numurs 3",'Firmas sarakst'!$A$1:$AZ$36,MATCH(Forma!$F$14,Firmas,0)+1,FALSE)) -> 
C5: 3 | D5: martā | H5: =IF(VLOOKUP("Izkraušanas vieta 4",'Firmas sarakst'!$A$1:$AZ$36,MATCH(Forma!$F$10,Firmas,0)+1,FALSE)<=0,"",VLOOKUP("Izkraušanas vieta 4",'Firmas sarakst'!$A$1:$AZ$36,MATCH(Forma!$F$10,Firmas,0)+1,FALSE)) ->  | J5: =IF(VLOOKUP("Autoboliļa vadītaja vārds un uzvārds 4",'Firmas sarakst'!$A$1:$AZ$36,MATCH(Forma!$F$14,Firmas,0)+1,FALSE)<=0,"",VLOOKUP("Autoboliļa vadītaja vārds un uzvārds 4",'Firmas sarakst'!$A$1:$AZ$36,MATCH(Forma!$F$14,Firmas,0)+1,FALSE)) ->  | L5: =IF(VLOOKUP("Autoboliļa reģistrācijas valsts numurs 4",'Firmas sarakst'!$A$1:$AZ$36,MATCH(Forma!$F$14,Firmas,0)+1,FALSE)<=0,"",VLOOKUP("Autoboliļa reģistrācijas valsts numurs 4",'Firmas sarakst'!$A$1:$AZ$36,MATCH(Forma!$F$14,Firmas,0)+1,FALSE)) -> 
C6: 4 | D6: aprīlī | H6: =IF(VLOOKUP("Izkraušanas vieta 5",'Firmas sarakst'!$A$1:$AZ$36,MATCH(Forma!$F$10,Firmas,0)+1,FALSE)<=0,"",VLOOKUP("Izkraušanas vieta 5",'Firmas sarakst'!$A$1:$AZ$36,MATCH(Forma!$F$10,Firmas,0)+1,FALSE)) ->  | J6: =IF(VLOOKUP("Autoboliļa vadītaja vārds un uzvārds 5",'Firmas sarakst'!$A$1:$AZ$36,MATCH(Forma!$F$14,Firmas,0)+1,FALSE)<=0,"",VLOOKUP("Autoboliļa vadītaja vārds un uzvārds 5",'Firmas sarakst'!$A$1:$AZ$36,MATCH(Forma!$F$14,Firmas,0)+1,FALSE)) ->  | L6: =IF(VLOOKUP("Autoboliļa reģistrācijas valsts numurs 5",'Firmas sarakst'!$A$1:$AZ$36,MATCH(Forma!$F$14,Firmas,0)+1,FALSE)<=0,"",VLOOKUP("Autoboliļa reģistrācijas valsts numurs 5",'Firmas sarakst'!$A$1:$AZ$36,MATCH(Forma!$F$14,Firmas,0)+1,FALSE)) -> 
C7: 5 | D7: maijā | H7: =IF(VLOOKUP("Izkraušanas vieta 6",'Firmas sarakst'!$A$1:$AZ$36,MATCH(Forma!$F$10,Firmas,0)+1,FALSE)<=0,"",VLOOKUP("Izkraušanas vieta 6",'Firmas sarakst'!$A$1:$AZ$36,MATCH(Forma!$F$10,Firmas,0)+1,FALSE)) ->  | J7: =IF(VLOOKUP("Autoboliļa vadītaja vārds un uzvārds 6",'Firmas sarakst'!$A$1:$AZ$36,MATCH(Forma!$F$14,Firmas,0)+1,FALSE)<=0,"",VLOOKUP("Autoboliļa vadītaja vārds un uzvārds 6",'Firmas sarakst'!$A$1:$AZ$36,MATCH(Forma!$F$14,Firmas,0)+1,FALSE)) ->  | L7: =IF(VLOOKUP("Autoboliļa reģistrācijas valsts numurs 6",'Firmas sarakst'!$A$1:$AZ$36,MATCH(Forma!$F$14,Firmas,0)+1,FALSE)<=0,"",VLOOKUP("Autoboliļa reģistrācijas valsts numurs 6",'Firmas sarakst'!$A$1:$AZ$36,MATCH(Forma!$F$14,Firmas,0)+1,FALSE)) -> 
C8: 6 | D8: jūnijā | H8: =IF(VLOOKUP("Izkraušanas vieta 7",'Firmas sarakst'!$A$1:$AZ$36,MATCH(Forma!$F$10,Firmas,0)+1,FALSE)<=0,"",VLOOKUP("Izkraušanas vieta 7",'Firmas sarakst'!$A$1:$AZ$36,MATCH(Forma!$F$10,Firmas,0)+1,FALSE)) ->  | J8: =IF(VLOOKUP("Autoboliļa vadītaja vārds un uzvārds 7",'Firmas sarakst'!$A$1:$AZ$36,MATCH(Forma!$F$14,Firmas,0)+1,FALSE)<=0,"",VLOOKUP("Autoboliļa vadītaja vārds un uzvārds 7",'Firmas sarakst'!$A$1:$AZ$36,MATCH(Forma!$F$14,Firmas,0)+1,FALSE)) ->  | L8: =IF(VLOOKUP("Autoboliļa reģistrācijas valsts numurs 7",'Firmas sarakst'!$A$1:$AZ$36,MATCH(Forma!$F$14,Firmas,0)+1,FALSE)<=0,"",VLOOKUP("Autoboliļa reģistrācijas valsts numurs 7",'Firmas sarakst'!$A$1:$AZ$36,MATCH(Forma!$F$14,Firmas,0)+1,FALSE)) -> 
C9: 7 | D9: jūlijā | H9: =IF(VLOOKUP("Izkraušanas vieta 8",'Firmas sarakst'!$A$1:$AZ$36,MATCH(Forma!$F$10,Firmas,0)+1,FALSE)<=0,"",VLOOKUP("Izkraušanas vieta 8",'Firmas sarakst'!$A$1:$AZ$36,MATCH(Forma!$F$10,Firmas,0)+1,FALSE)) ->  | J9: =IF(VLOOKUP("Autoboliļa vadītaja vārds un uzvārds 8",'Firmas sarakst'!$A$1:$AZ$36,MATCH(Forma!$F$14,Firmas,0)+1,FALSE)<=0,"",VLOOKUP("Autoboliļa vadītaja vārds un uzvārds 8",'Firmas sarakst'!$A$1:$AZ$36,MATCH(Forma!$F$14,Firmas,0)+1,FALSE)) ->  | L9: =IF(VLOOKUP("Autoboliļa reģistrācijas valsts numurs 8",'Firmas sarakst'!$A$1:$AZ$36,MATCH(Forma!$F$14,Firmas,0)+1,FALSE)<=0,"",VLOOKUP("Autoboliļa reģistrācijas valsts numurs 8",'Firmas sarakst'!$A$1:$AZ$36,MATCH(Forma!$F$14,Firmas,0)+1,FALSE)) -> 
C10: 8 | D10: augustā | H10: =IF(VLOOKUP("Izkraušanas vieta 9",'Firmas sarakst'!$A$1:$AZ$36,MATCH(Forma!$F$10,Firmas,0)+1,FALSE)<=0,"",VLOOKUP("Izkraušanas vieta 9",'Firmas sarakst'!$A$1:$AZ$36,MATCH(Forma!$F$10,Firmas,0)+1,FALSE)) ->  | J10: =IF(VLOOKUP("Autoboliļa vadītaja vārds un uzvārds 9",'Firmas sarakst'!$A$1:$AZ$36,MATCH(Forma!$F$14,Firmas,0)+1,FALSE)<=0,"",VLOOKUP("Autoboliļa vadītaja vārds un uzvārds 9",'Firmas sarakst'!$A$1:$AZ$36,MATCH(Forma!$F$14,Firmas,0)+1,FALSE)) ->  | L10: =IF(VLOOKUP("Autoboliļa reģistrācijas valsts numurs 9",'Firmas sarakst'!$A$1:$AZ$36,MATCH(Forma!$F$14,Firmas,0)+1,FALSE)<=0,"",VLOOKUP("Autoboliļa reģistrācijas valsts numurs 9",'Firmas sarakst'!$A$1:$AZ$36,MATCH(Forma!$F$14,Firmas,0)+1,FALSE)) -> 
C11: 9 | D11: septembrī | H11: =IF(VLOOKUP("Izkraušanas vieta 10",'Firmas sarakst'!$A$1:$AZ$36,MATCH(Forma!$F$10,Firmas,0)+1,FALSE)<=0,"",VLOOKUP("Izkraušanas vieta 10",'Firmas sarakst'!$A$1:$AZ$36,MATCH(Forma!$F$10,Firmas,0)+1,FALSE)) ->  | J11: =IF(VLOOKUP("Autoboliļa vadītaja vārds un uzvārds 10",'Firmas sarakst'!$A$1:$AZ$36,MATCH(Forma!$F$14,Firmas,0)+1,FALSE)<=0,"",VLOOKUP("Autoboliļa vadītaja vārds un uzvārds 10",'Firmas sarakst'!$A$1:$AZ$36,MATCH(Forma!$F$14,Firmas,0)+1,FALSE)) ->  | L11: =IF(VLOOKUP("Autoboliļa reģistrācijas valsts numurs 10",'Firmas sarakst'!$A$1:$AZ$36,MATCH(Forma!$F$14,Firmas,0)+1,FALSE)<=0,"",VLOOKUP("Autoboliļa reģistrācijas valsts numurs 10",'Firmas sarakst'!$A$1:$AZ$36,MATCH(Forma!$F$14,Firmas,0)+1,FALSE)) -> 
C12: 10 | D12: oktobrī
C13: 11 | D13: novembrī
C14: 12 | D14: decembrī

Sheet Firmas sarakst
A1: Firmas nosaukums | B1: "LANS pluss" SIA | C1: "Zaļie krastiņi"SIA | D1: "ALLFRESH PLUS" SIA | E1: "G.A.L." SIA | F1: "Kokneses Miesnieks" SIA | G1: "Lāsa B" IK | H1: "SABIEDRĪBA MĀRUPE" SIA | I1: "GRĀVENDĀLE" SIA | J1: "Savati M" SIA | K1: "FOREVERS" SIA | L1: "RABIK-3" SIA | M1: "AFGANIS"SIA | N1: "Saules Sveces"I/K | O1: "Ritales"A/S | P1: "Lēdurgas miesnieks" SIA | Q1: "Fitness Life"SIA | R1: "Gauja AB" | S1: "Pārtikas Kompānija"SIA | T1: "Vjačiks"IK | U1: "Vinto"SIA | V1: "MANANA"SIA | W1: "DAAPS"SIA | X1: "Gaļas nams-Ādaži"SIA | Y1: "Greis K"SIA | Z1: "JR Projects" SIA | AA1: "VK Serviss"SIA | AB1: "SNIFS" SIA | AC1: "Varpas N"SIA | AD1: "Matadors"SIA | AE1: "Gaļas pārstrādes uzņēmums Nākotne" SIA | AF1: "Rāmavas" Z/S | AG1: "BRANGAIS" IK | AH1: "LEJAS-ROZES"SIA | AI1: "AT FOREST"SIA | AJ1: "HARTVIK-F" SIA | AK1: "MARNO" SIA | AL1: "Baltijas jūras produkti"SIA | AM1: "AGRO TRANS A"SIA | AN1: "Andriņi" Z/S | AO1: "SHARDO" SIA | AP1: "Ozolmeži 92" SIA | AQ1: "Nimaks" SIA | AR1: "Kapparis" SIA | AS1: "Kuršu zeme" SIA | AT1: "HVV plus" SIA | AU1: "Golmi" SIA | AV1: "E+T"SIA | AW1: "RENNE" SIA | AX1: "SINE" SIA | AY1: "Turaidas Pils" SIA | AZ1: "ARATI" SIA
A2: Juridiskā adrese | B2: Centrāltirgus iela 3-10, Rīga, LV-1050 | C2: Stirnu iela 38-3,Rīga,LV-1084 | D2: S.Eizenšteina 77-100;Rīga LV-1079; | E2: Rīgas raj., Mārupes pag., Daugavas ielā 27-1, LV-2169 | F2: 1905.gada iela 33,Koknese,Kokneses pag.,LV-5113; | G2: Maza Nometņu iela 42-3, Rīga, LV-1002 | H2: Mazcenu aleja 37,Jaunmārupe, Mārupes novads, Rīgas rajons, LV-2166 | I2: Bukaišu 2,Rīga | J2: "Ādu ģērētava" Mārupes pagasts, Rīgas rajons, LV-2167 | K2: Granīta ielā 9a, Rīga , LV-1057 | L2: Gravas iela 2,Baldones nov.,LV-2125 | M2: Dzirciema iela 71-74,Rīga,LV-1055 | N2: Vaļņa iela 33-3,Cēsis,LV-4001 | O2: Dobeles šos.2,Jēlgava,LV-3007 | P2: "Cepli", Limbažu raj., Lēdurgas pag., LV-4012 | Q2: Loka iela 5-16,Cēsis,Cēsu rajons,LV-4101 | R2: Centra ielā 8,Inčukalna pag.,Rīgas raj.,LV-2140 | S2: Mellužu ielā 1,Rīga,LV-1067 | T2: P.Roziša 13-4,Liepas pag.Priekuļu nov. | U2: Marsa gatve 12-28,Rīga,LV-1082 | V2: Preiļi,Aglonas iela 29-49; | W2: Līduma 16/1,Rīga LV-1079 | X2: Mellužu iela 1F,Rīga,LV-1067 | Y2: Enerģētiķu 4-74,Salaspils | Z2: Mārupe,Zeltrītu 8-3,LV-2167 | AA2: Rīga,Līksnas 11,LV-1003 | AB2: Skolas ielā 11-2,Bauska,LV-3901 | AC2: "Vārpas"Vecates pag.,Valmieras raj.,LV-4211 | AD2: "Ievas" Katvaru pag.,Limbažu raj.,LV-4060 | AE2: Uzvaras ielā 2, Dobele, Dobeles raj., LV-3701 | AF2: "Rāmavas", Limbažu pagasts, Limbažu rajons, LV-4020 | AG2: Burtnieku nov.,Burtnieku pag.,Celmiņi-2. | AH2: Lejas Rozes,Raunas pagasts,Raunas novads,LV 4130 | AI2: Gaujas iela 7-28,Valmieras,LV-4201; | AJ2: Brīvbas gatve 216, Rīga, LV-1039 | AK2: Krustpils ielā 89 a,Rīga,LV-1057. | AL2: Stabu ielā 49-32,Rīga,LV-1011 | AM2: Čiekurkalna 1.līnija 54-4, Rīga,LV-1026 | AN2: Valmieras raj.,Koceņu pag.,LV 4220 | AO2: Rāmuļu iela 3a, Rīga, LV-1005 | AP2: Ventas 8/10,Sigulda,LV-2150 | AQ2: Lubānas ielā 137-25, Rīga, LV-1021 | AR2: Jūrmalas iela14, Babītes pag .,LV-2107 | AS2: "Cerības" Pūres pag., Tukuma rajons, LV-3124 | AT2: Dienvidu iela 5 k.1 - 48, Salaspils, LV-2121 | AU2: Staiceles ielā 1-1, Rīga, LV-1035 | AV2: "ESTI"Ciemupe,Ogres nov., | AW2: Tērbatas ielā 93/95 - 23, Rīga, LV-1001 | AX2: Smiltene,Daugavas 1 | AY2: "Turaudas" Mārupes novads, LV-2167 | AZ2: Višķu iela 11-28,Rīga
A3: Kontaktinformācija | B3: e-pasts: info@lanspluss.lv, (+371) 67215117 | E3: Talr.: (+371) 67934460 | H3: Tālr.: (+371) 29510600, fakss: (+371) 67933109
A4: PVN Nr. | B4: LV 40003728367 | C4: LV40003634678 | D4: LV 50103245341 | E4: LV 40103045117 | F4: 40103416785 | G4: LV 40002077814 | H4: LV40103045371 | I4: LV40003030914 | J4: LV 40003718960 | K4: LV 40003307535 | L4: LV50103498001 | M4: LV 40003596592 | N4: LV 44102032215 | O4: LV 40103016512 | P4: 44103033788 | Q4: LV 44103053318 | R4: LV 40003306830 | S4: LV 40003599531 | T4: LV44102033653 | U4: LV 40003165885 | V4: LV41503043229 | W4: LV40003572452 | X4: LV40103243419 | Y4: LV40003528952 | Z4: LV40103443980 | AA4: LV40003388131 | AB4: LV43603007472 | AC4: LV44101016073 | AD4: LV54102016481 | AE4: LV40003113629 | AF4: 46601007193 | AG4: 44102033507 | AH4: 44101023889 | AI4: LV44103086906 | AJ4: 40003247429 | AK4: LV40103013751 | AL4: 40003283241 | AM4: 50103435171 | AN4: 44101024969 | AO4: 40103269066 | AP4: 40103608953 | AQ4: 40003676101 | AR4: LV40003770858 | AS4: 40003519593 | AT4: LV 50002033351 | AU4: 40103123801 | AV4: 40103535753 | AW4: 40003599917 | AX4: 44103014804 | AY4: LV 40003531473 | AZ4: LV40103259087
A5: Bankas nosaukums, SWIFT, IBAN | B5: A/S "Swedbank", HABALV22, LV03HABA0551009322924 | C5: A/S"SEB banka";UNLALV2X;LV16UNLA0050002892036 | D5: A/S "Swedbank", HABALV22,LV53HABA0551026219036; | E5: A/S "Baltic Trust Bank", BATRLV2X, LV66BATR0051801848100 | F5: A/S "Latvijas Krājbanka"; UBALLV2X; LV11UBAL1311139618001; | H5: A/S "Swedbank", HABALV22, LV92HABA0551007656317 | I5: A/S "SEB banka"; UNLALV2X; LV56UNLA0050001529436; | J5: A/S "Swedbank", HABALV22, LV69HABA0551021245461 | K5: A/S "Swedbank"; HABALV22; LV83HABA0551007655509; | L5: A/S" NORVIK banka",LATBLV22;LV68LATB0002010116788; | M5: "TRASTA Komercbanka";KBRBLV2X; LV59KBRB1111251212001; | N5: A/S "SEB banka"; LV82UNLA0050013885313; | O5: A/S"Swedbank",HABALV22, LV38HABA0001408033304 | P5: A/S "Swedbank"; HABALV22; LV55HABA0551008850471; | Q5: A/S "SEB banka";UNLALV2X;LV98UNLA0050012883306 | R5: A/S"SEB banka";UNLALV2X;LV35UNLA0027801467286 | S5: A/S"Swedbank";HABALV22; LV25HABA0551008490268 | U5: A/S "GE Money Bank";BATRLV2X; LV24BATR0051802067300 | V5: A/S "Swedbank";HABALV22; LV83HABA0551017929458 | W5: Latvijas Krājbanka;UBALLV2X; LV51UBAL1371131087001; | X5: A/S "NORVIK BANKA";LATBLV22; LV16LATB0002010092116; | Y5: Krājbanka;UBALLV2X; LV38UBAL1326130331001; | Z5: A/S "Swedbank";HABALV22; LV64HABA0551032725695; | AA5: A/S "Swedbank";HABALV22; LV60HABA0551017079764; | AB5: A/S SEB banka; UNLALV2X; LV51UNLA0029001466026; | AC5: A/S "Swedbank";HABALV22; LV98HABA0551000269659; | AD5: A/S "SEB banka";UNLALV2X; LV43UNLA0013001468654; | AE5: A/S "SEB banka";UNLALV2X; LV43UNLA0006003467189; | AF5: A/S "Parex banka;PARXLV22; LV62PARX0012088400001; | AG5: A/S"DNB Banka"; LV34RIKO0002013157572; | AH5: A/S "Latvijas Krājbanka"; UBALLV2X; LV74UBAL3102170236006; | AI5: 11 | AJ5: 11 | AK5: 11 | AL5: 11 | AM5: A/S "Swedbank"; HABALV22; LV54HABA0551031084829; | AN5: A/S Latvijas Krājbanka; UBALLV2X; LV49UBAL4300124600001; | AO5: A/S''Swedbank"; HABALV22; LV90HABA0551027518655; | AP5: A/S"Swedbank"; HABALV22; LV85HABA0551035535989; | AQ5: A/S''SEBbanka"; UNLALV2X; LV20UNLA0050004229788; | AR5: A/S "Swedbank"; HABALV22; LV34HABA0551011144899; | AS5: A/S "SEB banka"; UNLALV2X; LV05UNLA0011003467218; | AT5: A/S"SEB banka"; UNLALV2X; LV37UNLA0034110643100; | AU5: A/S''SEB banka"; UNLALV2X; LV73UNla0002039469305; | AV5: A/S"Swedbank"; HABALV22; LV64HABA0551033199152; | AW5: A/S "Swedbank"; HABALV22; LV33HABA0551002993910; | AX5: A/S "SEB banka"; LV50UNLA0016002467914; | AY5: A/S “Parex banka” PARXLV22; LV94PARX0004910190002; | AZ5: A/S "SEB Banka"; UNLALV2X; LV21UNLA0050014802576;
A6: Apmaksas termiņš | B6: 10 | D6: 1 | E6: 5 | F6: 2 | G6: 10 | H6: 10 | I6: 1 | J6: 10 | K6: 7 | L6: 1 | M6: 1 | N6: 0 | O6: 7 | P6: 2 | Q6: 7 | R6: 14 | S6: 14 | U6: 7 | V6: 1 | X6: 7 | Z6: 1 | AA6: 7 | AB6: 3 | AC6: 3 | AD6: 3 | AF6: 1 | AG6: 7 | AH6: 3 | AI6: 3 | AJ6: 5 | AK6: 3 | AL6: 3 | AM6: 5 | AN6: 1 | AO6: 3 | AP6: 1 | AQ6: 3 | AR6: 1 | AS6: 3 | AT6: 1 | AU6: 3 | AV6: 3 | AW6: 9 | AX6: 1 | AY6: 1 | AZ6: 1
A7: Izkraušanas vieta 1 | B7: Lubānas ielā 133, Rīga, LV-1021 (PVD 033156) | C7: Maskavas ielā 250,Rīga,LV-1063 | D7: Rāmava,Rāmavas iela 10; | E7: Rīgas raj., Mārupes pag., Daugavas ielā 27-1, LV-2169 (PVD 022880) | F7: Veikals,Daugavas iela 102,Skrīveri,LV-5125; | G7: Nometņu ielā 64, Rīga, LV-1002 | H7: "Ozoli", Mārupes novads, Rīgas rajons, LV-2167 | I7: Bukaišu 2,Rīga | J7: "Ādu ģērētava" Mārupes pagasts, Rīgas rajons, LV-2167 (PVD 037187) | K7: Granīta ielā 9a, Rīga , LV-1057 | L7: Gravas iela 2,Baldones nov.,LV-2125 | M7: Aploklciema iela 1;Rīga | N7: Vaļņa iela 33-3,Cēsis,LV-4001 | O7: Dobeles šos.2,Jēlgava,LV-3007 | P7: "Cepli", Limbažu raj., Lēdurgas pag., LV-4012 | Q7: Blaumaņa ielā 2,Sigulda,Rīgas rajons,LV-2150 | R7: Centra ielā 8,Gauja,Inčukalna pag.,Rīgas raj.,LV-2140 | S7: Mellužu ielā 1,Rīga,LV-1067 | U7: Lubānas iela 43a,Rīga,LV-1035 | V7: Kastire,Liepu iela 2,Preiļi,Latvija,LV-5301 | W7: Viskaļu iela 3,Rīga. | X7: Lielvārde,Parka 8,Lielvārdes novads | Y7: Maskavas iela 250,Rīga,LV-1063 | Z7: Nometņu ielā 64, Rīga, LV-1002 | AA7: Rīga,Līksnas 11,LV-1003 | AB7: "Ielejas",Īslīces pagasts,Bauskas rajons,LV-3901 | AC7: "RIO"Ropažu pag.,Rīgas raj.,LV-2135 | AD7: "Ievas" Katvaru pag.,Limbažu raj.,LV-4060 | AE7: Grīvas, Nākotne, Glūdas pag., Jelgavas raj., LV-3040 | AF7: Rīgas ielā 9, Limbaži, LV-4001 | AG7: Burtnieku nov.,Burtnieku pag.,Celmiņi-2. | AH7: 1905.gada iela 33,Koknese pagasts,Kokneses novads,LV 5113 | AJ7: Brīvbas gatve 216, Rīga, LV-1039 | AK7: Krustpils ielā 89 a,Rīga,LV-1057. | AL7: Artilērijas ielā 40,Rīga,LV-1009; | AM7: Viskaļu ielā 3,Rīga,LV-1026 | AN7: Tērbatas ielā 6, Valmiera, LV-4201 | AO7: Rāmuļu iela 3a, Rīga, LV-1005 | AQ7: Katlakalna ielā 13-18/16, Rīga, LV-1073 | AR7: Jūrmalas iela14, Babītes pag .,LV-2107 | AS7: "Cerības" Pūres pag., Tukuma rajons, LV-3124 | AT7: Braslas ielā 22, Rīga, LV-1035 | AU7: "Veiksme", Mucenieki, Ropažu pag., Rīgas raj. | AV7: Jūrmala;Dubulti;pr.16 | AW7: Čiekurkalna 1.linija 84, Rīga, LV-1026 | AX7: Smiltene,Daugavas 1 | AY7: "Turaudas" Mārupes novads, LV-2167
A8: Izkraušanas vieta 2 | B8: Nēģu ielā 7, Riga, LV-1050 (PVD 024157)
A9: Izkraušanas vieta 3
A10: Izkraušanas vieta 4
A11: Izkraušanas vieta 5
A12: Izkraušanas vieta 6
A13: Izkraušanas vieta 7
A14: Izkraušanas vieta 8
A15: Izkraušanas vieta 9
A16: Izkraušanas vieta 10
A17: Autoboliļa reģistrācijas valsts numurs 1 | B17: FJ - 1189 | AF17: GN-4770
A18: Autoboliļa reģistrācijas valsts numurs 2 | B18: HG - 7645
A19: Autoboliļa reģistrācijas valsts numurs 3 | B19: HD - 8627
A20: Autoboliļa reģistrācijas valsts numurs 4
A21: Autoboliļa reģistrācijas valsts numurs 5
A22: Autoboliļa reģistrācijas valsts numurs 6
A23: Autoboliļa reģistrācijas valsts numurs 7
A24: Autoboliļa reģistrācijas valsts numurs 8
A25: Autoboliļa reģistrācijas valsts numurs 9
A26: Autoboliļa reģistrācijas valsts numurs 10
A27: Autoboliļa vadītaja vārds un uzvārds 1 | B27: Sergejs Ivanovs
A28: Autoboliļa vadītaja vārds un uzvārds 2 | B28: Sergejs Orlovs
A29: Autoboliļa vadītaja vārds un uzvārds 3 | B29: Aleksandrs Taroviks
A30: Autoboliļa vadītaja vārds un uzvārds 4 | B30: Viktors Ņikitins
A31: Autoboliļa vadītaja vārds un uzvārds 5
A32: Autoboliļa vadītaja vārds un uzvārds 6
A33: Autoboliļa vadītaja vārds un uzvārds 7
A34: Autoboliļa vadītaja vārds un uzvārds 8
A35: Autoboliļa vadītaja vārds un uzvārds 9
A36: Autoboliļa vadītaja vārds un uzvārds 10

Sheet Cipari-vārdi
A1: =PPR!L48 -> 2348.28 | B1: -- ОБРАБАТЫВАЕМОЕ ЧИСЛО № 1
A2: =REPLACE(A14,1,2,UPPER(LEFT(A14,2))) -> Divi tūkstoši trīs simti četrdesmit astoņi lati 28 sant. | B2: -- РЕЗУЛЬТАТ № 1 | D2: Чудесно переводит числа в слова
A3: 0 | B3: ="" ->  | C3: desmit | D3: ="" ->  | E3: ="" ->  | F3: lats | G3: tūkstotis | H3: миллион | I3: миллиард | J3: триллион | K3: sant.
A4: 1 | B4: viens | C4: vienpadsmit | D4: ="" ->  | E4: viens simts | F4: lati | G4: tūkstoši | H4: миллиона | I4: миллиарда | J4: триллиона | K4: sant.
A5: 2 | B5: divi | C5: divpadsmit | D5: divdesmit | E5: divi simti | F5: lati | G5: tūkstoši | H5: миллионов | I5: миллиардов | J5: триллионов | K5: sant.
A6: 3 | B6: trīs | C6: trīspadsmit | D6: trīsdesmit | E6: trīs simti
A7: 4 | B7: četri | C7: četrpadsmit | D7: četrdesmit | E7: četri simti
A8: 5 | B8: pieci | C8: piecpadsmit | D8: piecdesmit | E8: pieci simti | F8: одна
A9: 6 | B9: seši | C9: sešpadsmit | D9: sešdesmit | E9: seši simti | F9: две
A10: 7 | B10: septiņi | C10: septiņpadsmit | D10: septiņdesmit | E10: septiņi simti
A11: 8 | B11: astoņi | C11: astoņpadsmit | D11: astoņdesmit | E11: astoņi simti
A12: 9 | B12: deviņi | C12: deviņpadsmit | D12: deviņdesmit | E12: deviņi simti
A13: =A1 -> 2348.28 | B13: -1 | C13: =A13-POWER(10,B13)*INT(A13/POWER(10,B13)) -> 0.08 | D13: =C13 -> 0.08 | E13: =ROUND(D13/POWER(10,B13-1),0) -> 8
A14: =CONCATENATE(G26,G25,G24,H24,G23,G22,G21,H21,G20,G19,G18,H18,G17,G16,G15,H15,TEXT(I15," 00"),J15) -> divi tūkstoši trīs simti četrdesmit astoņi lati 28 sant. | B14: 0 | C14: =A13-POWER(10,B14)*INT(A13/POWER(10,B14)) -> 0.28 | D14: =C14-D13 -> 0.2 | E14: =D14/POWER(10,B14-1) -> 2 | F14: словами | G14: коррекция для тысяч | H14: склонения | I14: копейки
B15: 1 | C15: =A13-POWER(10,B15)*INT(A13/POWER(10,B15)) -> 8.28 | D15: =C15-D14-D13 -> 8 | E15: 8 | F15: =IF(E16>=2,INDEX(B3:C12,E15+1,1),INDEX(B3:C12,E15+1,E16+1)) -> astoņi | G15: =F15 -> astoņi | H15: =IF(SUM(E15:E26)=0," 0 lati",IF(E16<>1,IF(OR(E15>4,E15=0),F5,IF(E15=1,F3,F4)),F5)) -> lati | I15: =C14*100 -> 28 | J15: =IF(E14<>1,IF(OR(E13>4,E13=0),K5,IF(E13=1,K3,K4)),K5) -> sant.
A16: разряд | B16: 2 | C16: =A13-POWER(10,B16)*INT(A13/POWER(10,B16)) -> 48.28 | D16: =C16-C15 -> 40 | E16: 4 | F16: =IF(E16>=2,INDEX(D3:D12,E16+1),"") -> četrdesmit | G16: =F16 -> četrdesmit
B17: 3 | C17: =A13-POWER(10,B17)*INT(A13/POWER(10,B17)) -> 348.28 | D17: 300 | E17: 3 | F17: =INDEX(E3:E12,E17+1) -> trīs simti | G17: =F17 -> trīs simti
B18: 4 | C18: =A13-POWER(10,B18)*INT(A13/POWER(10,B18)) -> 2348.28 | D18: 2000 | E18: 2 | F18: =IF(E19>=2,INDEX(B3:C12,E18+1,1),INDEX(B3:C12,E18+1,E19+1)) -> divi | G18: =IF(F18=" один",F8,IF(F18=" два",F9,F18)) -> divi | H18: =IF(OR(E20<>0,E19<>0,E18<>0),IF(E19<>1,IF(OR(E18>4,E18=0),G5,IF(E18=1,G3,G4)),G5),"") -> tūkstoši
B19: 5 | C19: =A13-POWER(10,B19)*INT(A13/POWER(10,B19)) -> 2348.28 | D19: 0 | E19: 0 | F19: =IF(E19>=2,INDEX(D3:D12,E19+1),"") ->  | G19: =F19 -> 
B20: 6 | C20: =A13-POWER(10,B20)*INT(A13/POWER(10,B20)) -> 2348.28 | D20: 0 | E20: 0 | F20: =INDEX(E3:E12,E20+1) -> 
B21: 7 | C21: =A13-POWER(10,B21)*INT(A13/POWER(10,B21)) -> 2348.28 | D21: 0 | E21: 0 | F21: =IF(E22>=2,INDEX(B3:C12,E21+1,1),INDEX(B3:C12,E21+1,E22+1)) ->  | H21: =IF(OR(E21<>0,E22<>0,E23<>0),IF(E22<>1,IF(OR(E21>4,E21=0),H5,IF(E21=1,H3,H4)),H5),"") -> 
B22: 8 | C22: =A13-POWER(10,B22)*INT(A13/POWER(10,B22)) -> 2348.28 | D22: 0 | E22: 0 | F22: =IF(E22>=2,INDEX(D3:D12,E22+1),"") -> 
B23: 9 | C23: =A13-POWER(10,B23)*INT(A13/POWER(10,B23)) -> 2348.28 | D23: 0 | E23: 0 | F23: =INDEX(E3:E12,E23+1) -> 
B24: 10 | C24: =A13-POWER(10,B24)*INT(A13/POWER(10,B24)) -> 2348.28 | D24: 0 | E24: 0 | F24: =IF(E25>=2,INDEX(B3:C12,E24+1,1),INDEX(B3:C12,E24+1,E25+1)) ->  | H24: =IF(OR(E24<>0,E25<>0,E26<>0),IF(E25<>1,IF(OR(E24>4,E24=0),I5,IF(E24=1,I3,I4)),I5),"") -> 
B25: 11 | C25: =A13-POWER(10,B25)*INT(A13/POWER(10,B25)) -> 2348.28 | D25: 0 | E25: 0 | F25: =IF(E25>=2,INDEX(D3:D12,E25+1),"") -> 
B26: 12 | C26: =A13-POWER(10,B26)*INT(A13/POWER(10,B26)) -> 2348.28 | D26: 0 | E26: 0 | F26: =INDEX(E3:E12,E26+1) -> 
B27: До триллионов еще не добрался !

Sheet Cipari-vārdi_eiro
A1: =PPR!M48 -> 3341.29 | B1: -- ОБРАБАТЫВАЕМОЕ ЧИСЛО № 1
A2: =REPLACE(A14,1,2,UPPER(LEFT(A14,2))) -> Trīs tūkstoši trīs simti četrdesmit vienseiro 29 cent. | B2: -- РЕЗУЛЬТАТ № 1 | D2: Чудесно переводит числа в слова
A3: 0 | B3: ="" ->  | C3: desmit | D3: ="" ->  | E3: ="" ->  | F3: eiro | G3: tūkstotis | H3: миллион | I3: миллиард | J3: триллион | K3: cent.
A4: 1 | B4: viens | C4: vienpadsmit | D4: ="" ->  | E4: viens simts | F4: eiro | G4: tūkstoši | H4: миллиона | I4: миллиарда | J4: триллиона | K4: cent.
A5: 2 | B5: divi | C5: divpadsmit | D5: divdesmit | E5: divi simti | F5: eiro | G5: tūkstoši | H5: миллионов | I5: миллиардов | J5: триллионов | K5: cent.
A6: 3 | B6: trīs | C6: trīspadsmit | D6: trīsdesmit | E6: trīs simti
A7: 4 | B7: četri | C7: četrpadsmit | D7: četrdesmit | E7: četri simti
A8: 5 | B8: pieci | C8: piecpadsmit | D8: piecdesmit | E8: pieci simti | F8: одна
A9: 6 | B9: seši | C9: sešpadsmit | D9: sešdesmit | E9: seši simti | F9: две
A10: 7 | B10: septiņi | C10: septiņpadsmit | D10: septiņdesmit | E10: septiņi simti
A11: 8 | B11: astoņi | C11: astoņpadsmit | D11: astoņdesmit | E11: astoņi simti
A12: 9 | B12: deviņi | C12: deviņpadsmit | D12: deviņdesmit | E12: deviņi simti
A13: =A1 -> 3341.29 | B13: -1 | C13: =A13-POWER(10,B13)*INT(A13/POWER(10,B13)) -> 0.09 | D13: =C13 -> 0.09 | E13: =ROUND(D13/POWER(10,B13-1),0) -> 9
A14: =CONCATENATE(G26,G25,G24,H24,G23,G22,G21,H21,G20,G19,G18,H18,G17,G16,G15,H15,TEXT(I15," 00"),J15) -> trīs tūkstoši trīs simti četrdesmit vienseiro 29 cent. | B14: 0 | C14: =A13-POWER(10,B14)*INT(A13/POWER(10,B14)) -> 0.29 | D14: =C14-D13 -> 0.2 | E14: =D14/POWER(10,B14-1) -> 2 | F14: словами | G14: коррекция для тысяч | H14: склонения | I14: копейки
B15: 1 | C15: =A13-POWER(10,B15)*INT(A13/POWER(10,B15)) -> 1.29 | D15: =C15-D14-D13 -> 1 | E15: 1 | F15: =IF(E16>=2,INDEX(B3:C12,E15+1,1),INDEX(B3:C12,E15+1,E16+1)) -> viens | G15: =F15 -> viens | H15: =IF(SUM(E15:E26)=0," 0 lati",IF(E16<>1,IF(OR(E15>4,E15=0),F5,IF(E15=1,F3,F4)),F5)) -> eiro | I15: =C14*100 -> 29 | J15: =IF(E14<>1,IF(OR(E13>4,E13=0),K5,IF(E13=1,K3,K4)),K5) -> cent.
A16: разряд | B16: 2 | C16: =A13-POWER(10,B16)*INT(A13/POWER(10,B16)) -> 41.29 | D16: =C16-C15 -> 40 | E16: 4 | F16: =IF(E16>=2,INDEX(D3:D12,E16+1),"") -> četrdesmit | G16: =F16 -> četrdesmit
B17: 3 | C17: =A13-POWER(10,B17)*INT(A13/POWER(10,B17)) -> 341.29 | D17: 300 | E17: 3 | F17: =INDEX(E3:E12,E17+1) -> trīs simti | G17: =F17 -> trīs simti
B18: 4 | C18: =A13-POWER(10,B18)*INT(A13/POWER(10,B18)) -> 3341.29 | D18: 3000 | E18: 3 | F18: =IF(E19>=2,INDEX(B3:C12,E18+1,1),INDEX(B3:C12,E18+1,E19+1)) -> trīs | G18: =IF(F18=" один",F8,IF(F18=" два",F9,F18)) -> trīs | H18: =IF(OR(E20<>0,E19<>0,E18<>0),IF(E19<>1,IF(OR(E18>4,E18=0),G5,IF(E18=1,G3,G4)),G5),"") -> tūkstoši
B19: 5 | C19: =A13-POWER(10,B19)*INT(A13/POWER(10,B19)) -> 3341.29 | D19: 0 | E19: 0 | F19: =IF(E19>=2,INDEX(D3:D12,E19+1),"") ->  | G19: =F19 -> 
B20: 6 | C20: =A13-POWER(10,B20)*INT(A13/POWER(10,B20)) -> 3341.29 | D20: 0 | E20: 0 | F20: =INDEX(E3:E12,E20+1) -> 
B21: 7 | C21: =A13-POWER(10,B21)*INT(A13/POWER(10,B21)) -> 3341.29 | D21: 0 | E21: 0 | F21: =IF(E22>=2,INDEX(B3:C12,E21+1,1),INDEX(B3:C12,E21+1,E22+1)) ->  | H21: =IF(OR(E21<>0,E22<>0,E23<>0),IF(E22<>1,IF(OR(E21>4,E21=0),H5,IF(E21=1,H3,H4)),H5),"") -> 
B22: 8 | C22: =A13-POWER(10,B22)*INT(A13/POWER(10,B22)) -> 3341.29 | D22: 0 | E22: 0 | F22: =IF(E22>=2,INDEX(D3:D12,E22+1),"") -> 
B23: 9 | C23: =A13-POWER(10,B23)*INT(A13/POWER(10,B23)) -> 3341.29 | D23: 0 | E23: 0 | F23: =INDEX(E3:E12,E23+1) -> 
B24: 10 | C24: =A13-POWER(10,B24)*INT(A13/POWER(10,B24)) -> 3341.29 | D24: 0 | E24: 0 | F24: =IF(E25>=2,INDEX(B3:C12,E24+1,1),INDEX(B3:C12,E24+1,E25+1)) ->  | H24: =IF(OR(E24<>0,E25<>0,E26<>0),IF(E25<>1,IF(OR(E24>4,E24=0),I5,IF(E24=1,I3,I4)),I5),"") -> 
B25: 11 | C25: =A13-POWER(10,B25)*INT(A13/POWER(10,B25)) -> 3341.29 | D25: 0 | E25: 0 | F25: =IF(E25>=2,INDEX(D3:D12,E25+1),"") -> 
B26: 12 | C26: =A13-POWER(10,B26)*INT(A13/POWER(10,B26)) -> 3341.29 | D26: 0 | E26: 0 | F26: =INDEX(E3:E12,E26+1) -> 
B27: До триллионов еще не добрался !

Sheet Eiro kurss
A2: Eiro kurss | B2: 0.702804

Sheet Лист1
